fUSD/lending_fUSD_20250530
["ID","MTS","AMOUNT","RATE_DAILY","PERIOD"]
[363126021,1748592638735,-1579.44,0.00021917,2]
[363126022,1748592638744,-420.0,0.00021917,2]
[363126023,1748592638754,-160.0,0.00021917,2]
[363126024,1748592638765,-420.0,0.00021917,2]
[363126025,1748592638775,-420.0,0.00021917,2]
[363126026,1748592638784,-337.58105884,0.00021917,2]
[363126027,1748592638794,-420.0,0.00021917,2]
[363126028,1748592638803,-420.0,0.00021917,2]
[363126029,1748592638813,-420.00605235,0.00021917,2]
[363126030,1748592638822,-591.98,0.00021917,2]
[363126031,1748592638833,-160.0,0.00021917,2]
[363126032,1748592638842,-420.0,0.00021917,2]
[363126033,1748592638852,-420.0,0.00021917,2]
[363126034,1748592638862,-420.0,0.00021917,2]
[363126035,1748592638871,-420.0,0.00021917,2]
[363126036,1748592638880,-473.43,0.00021917,2]
[363126037,1748592638890,-424.81527192,0.00021917,2]
[363126038,1748592638900,-1006.51553197,0.00021917,2]
[363126039,1748592638909,-420.0,0.00021917,2]
[363126040,1748592638919,-1096.5,0.00021917,2]
[363126041,1748592638928,-420.0,0.00021917,2]
[363126042,1748592638937,-1505.42,0.00021917,2]
[363126043,1748592638946,-420.0,0.00021917,2]
[363126044,1748592638955,-630.95,0.00021917,2]
[363126045,1748592638965,-420.0,0.00021917,2]
[363126046,1748592638974,-554.53,0.00021917,2]
[363126047,1748592638983,-420.0,0.00021917,2]
[363126048,1748592638992,-420.0,0.00021917,2]
[363126049,1748592639001,-700.87,0.00021917,2]
[363126050,1748592639011,-1273.08,0.00021917,2]
[363126051,1748592639020,-420.0,0.00021917,2]
[363126052,1748592639030,-420.0,0.00021917,2]
[363126053,1748592639040,-420.0,0.00021917,2]
[363126054,1748592639051,-420.0,0.00021917,2]
[363126055,1748592639061,-1364.1,0.00021917,2]
[363126056,1748592639070,-420.0,0.00021917,2]
[363126057,1748592639079,-423.97085056,0.00021917,2]
[363126058,1748592639089,-420.0,0.00021917,2]
[363126059,1748592639098,-578.48,0.00021917,2]
[363126060,1748592639107,-1267.4,0.00021917,2]
[363126061,1748592639117,-420.0,0.00021917,2]
[363126062,1748592639126,-420.0,0.00021917,2]
[363126063,1748592639135,-488.42,0.00021917,2]
[363126064,1748592639144,-505.68514956,0.00021917,2]
[363126065,1748592639153,-420.0,0.00021917,2]
[363126066,1748592639163,-421.76156006,0.00021917,2]
[363126067,1748592639172,-500.0,0.00021917,2]
[363126068,1748592639182,-420.0,0.00021917,2]
[363126069,1748592639191,-420.0,0.00021917,2]
[363126070,1748592639201,-420.0,0.00021917,2]
[363126071,1748592639211,-501.87152561,0.00021917,2]
[363126072,1748592639221,-420.0,0.00021917,2]
[363126073,1748592639232,-1897.71,0.00021917,2]
[363126074,1748592639243,-892.98,0.00021917,2]
[363126075,1748592639253,-420.0,0.00021917,2]
[363126076,1748592639263,-420.0,0.00021917,2]
[363126077,1748592639272,-1185.28,0.00021917,2]
[363126078,1748592639282,-748.48,0.00021917,2]
[363126079,1748592639291,-420.0,0.00021917,2]
[363126080,1748592639301,-420.0,0.00021917,2]
[363126081,1748592639311,-510.61984279,0.00021917,2]
[363126082,1748592639320,-420.0,0.00021917,2]
[363126083,1748592639330,-420.0,0.00021917,2]
[363126084,1748592639340,-626.88,0.00021917,2]
[363126085,1748592639350,-455.86,0.00021917,2]
[363126086,1748592639359,-423.19778476,0.00021917,2]
[363126087,1748592639369,-500.0,0.00021917,2]
[363126088,1748592639379,-1534.39,0.00021917,2]
[363126089,1748592639388,-420.0,0.00021917,2]
[363126090,1748592639398,-420.0,0.00021917,2]
[363126091,1748592639408,-420.0,0.00021917,2]
[363126092,1748592639417,-420.0,0.00021917,2]
[363126093,1748592639426,-592.6,0.00021917,2]
[363126094,1748592639436,-783.4,0.00021917,2]
[363126095,1748592639446,-420.0,0.00021917,2]
[363126096,1748592639456,-425.69755832,0.00021917,2]
[363126097,1748592639465,-384.4964958,0.00021917,2]
[363126098,1748592639475,-797.14,0.00021917,2]
[363126099,1748592639485,-1189.09,0.00021917,2]
[363126100,1748592639495,-420.0,0.00021917,2]
[363126101,1748592639504,-734.99,0.00021917,2]
[363126102,1748592639513,-161.86898578,0.00021917,2]
[363126103,1748592639523,-548.42,0.00021917,2]
[363126104,1748592639536,-420.0,0.00021917,2]
[363126105,1748592639546,-416.97475516,0.00021917,2]
[363126106,1748592639557,-1501.32,0.00021917,2]
[363126107,1748592639569,-164.68215292,0.00021917,2]
[363126108,1748592639581,-420.0,0.00021917,2]
[363126109,1748592639591,-160.0,0.00021917,2]
[363126110,1748592639600,-654.58,0.00021917,2]
[363126111,1748592639610,-420.0,0.00021917,2]
[363126112,1748592639619,-500.0,0.00021917,2]
[363126113,1748592639633,-804.41,0.00021917,2]
[363126114,1748592639642,-420.0,0.00021917,2]
[363126115,1748592639652,-420.0,0.00021917,2]
[363126116,1748592639661,-420.0,0.00021917,2]
[363126117,1748592639670,-720.23,0.00021917,2]
[363126118,1748592639680,-1900.37,0.00021917,2]
[363126119,1748592639696,-426.11729855,0.00021917,2]
[363126120,1748592639705,-420.0,0.00021917,2]
[363126121,1748592639715,-420.0,0.00021917,2]
[363126122,1748592639725,-420.0,0.00021917,2]
[363126123,1748592639735,-387.73417533,0.00021917,2]
[363126124,1748592639745,-160.0,0.00021917,2]
[363126125,1748592639755,-420.0,0.00021917,2]
[363126126,1748592639777,-652.89,0.00021917,2]
[363126127,1748592639787,-420.0,0.00021917,2]
[363126128,1748592639798,-420.0,0.00021917,2]
[363126129,1748592639807,-160.0,0.00021917,2]
[363126130,1748592639816,-500.0,0.00021917,2]
[363126131,1748592639826,-594.75,0.00021917,2]
[363126132,1748592639835,-1363.72,0.00021917,2]
[363126133,1748592639845,-648.24,0.00021917,2]
[363126134,1748592639855,-420.0,0.00021917,2]
[363126135,1748592639865,-502.71052606,0.00021917,2]
[363126136,1748592639873,-420.0,0.00021917,2]
[363126137,1748592639884,-420.0,0.00021917,2]
[363126138,1748592639893,-717.92,0.00021917,2]
[363126139,1748592639903,-160.0,0.00021917,2]
[363126140,1748592639912,-764.52,0.00021917,2]
[363126141,1748592639921,-588.18,0.00021917,2]
[363126142,1748592639931,-420.0,0.00021917,2]
[363126143,1748592639940,-1042.58,0.00021917,2]
[363126144,1748592639949,-523.52,0.00021917,2]
[363126145,1748592639959,-384.88494013,0.00021917,2]
[363126146,1748592639968,-420.0,0.00021917,2]
[363126147,1748592639977,-420.0,0.00021917,2]
[363126148,1748592639986,-420.0,0.00021917,2]
[363126149,1748592639995,-554.63,0.00021917,2]
[363126150,1748592640004,-160.0,0.00021917,2]
[363126151,1748592640014,-784.13,0.00021917,2]
[363126152,1748592640023,-2461.17,0.00021917,2]
[363126153,1748592640032,-450.35,0.00021917,2]
[363126154,1748592640041,-420.0,0.00021917,2]
[363126155,1748592640050,-500.0,0.00021917,2]
[363126156,1748592640059,-420.0,0.00021917,2]
[363126157,1748592640068,-501.93121484,0.00021917,2]
[363126158,1748592640077,-600.13,0.00021917,2]
[363126159,1748592640086,-420.0,0.00021917,2]
[363126160,1748592640095,-545.18,0.00021917,2]
[363126161,1748592640104,-420.0,0.00021917,2]
[363126162,1748592640113,-500.0,0.00021917,2]
[363126163,1748592640123,-165.33875953,0.00021917,2]
[363126164,1748592640132,-598.29,0.00021917,2]
[363126165,1748592640142,-526.08178114,0.00021917,2]
[363126166,1748592640151,-420.0,0.00021917,2]
[363126167,1748592640160,-158.87,0.00021917,2]
[363126168,1748592640170,-646.16,0.00021917,2]
[363126169,1748592640179,-429.86,0.00021917,2]
[363126170,1748592640189,-420.0,0.00021917,2]
[363126171,1748592640198,-921.87,0.00021917,2]
[363126172,1748592640208,-1851.67,0.00021917,2]
[363126173,1748592640217,-1246.6,0.00021917,2]
[363126174,1748592640227,-919.16,0.00021917,2]
[363126175,1748592640236,-532.95,0.00021917,2]
[363126176,1748592640246,-907.6,0.00021917,2]
[363126177,1748592640255,-420.0,0.00021917,2]
[363126178,1748592640265,-420.0,0.00021917,2]
[363126179,1748592640275,-880.17,0.00021917,2]
[363126180,1748592640284,-420.0,0.00021917,2]
[363126181,1748592640294,-1086.74,0.00021917,2]
[363126182,1748592640304,-496.93,0.00021917,2]
[363126183,1748592640314,-300.0,0.00021917,2]
[363126184,1748592640323,-420.0,0.00021917,2]
[363126185,1748592640334,-420.0,0.00021917,2]
[363126186,1748592640343,-160.0,0.00021917,2]
[363126187,1748592640354,-420.0,0.00021917,2]
[363126188,1748592640364,-420.0,0.00021917,2]
[363126189,1748592640374,-420.0,0.00021917,2]
[363126190,1748592640384,-850.96,0.00021917,2]
[363126191,1748592640393,-614.54,0.00021917,2]
[363126192,1748592640403,-846.52,0.00021917,2]
[363126193,1748592640412,-420.0,0.00021917,2]
[363126194,1748592640422,-1038.16,0.00021917,2]
[363126195,1748592640437,-420.0,0.00021917,2]
[363126196,1748592640447,-831.29,0.00021917,2]
[363126197,1748592640456,-420.0,0.00021917,2]
[363126198,1748592640466,-495.21,0.00021917,2]
[363126199,1748592640475,-422.5,0.00021917,2]
[363126200,1748592640485,-420.0,0.00021917,2]
[363126201,1748592640494,-420.0,0.00021917,2]
[363126202,1748592640504,-420.0,0.00021917,2]
[363126203,1748592640514,-518.94,0.00021917,2]
[363126204,1748592640523,-1195.61,0.00021917,2]
[363126205,1748592640532,-420.0,0.00021917,2]
[363126206,1748592640542,-420.0,0.00021917,2]
[363126207,1748592640551,-420.0,0.00021917,2]
[363126208,1748592640564,-420.0,0.00021917,2]
[363126209,1748592640574,-659.68,0.00021917,2]
[363126210,1748592640585,-420.0,0.00021917,2]
[363126211,1748592640595,-1177.9,0.00021917,2]
[363126212,1748592640604,-696.02,0.00021917,2]
[363126213,1748592640614,-420.0,0.00021917,2]
[363126214,1748592640624,-420.0,0.00021917,2]
[363126215,1748592640633,-551.02,0.00021917,2]
[363126216,1748592640642,-420.0,0.00021917,2]
[363126217,1748592640652,-420.0,0.00021917,2]
[363126218,1748592640662,-162.73495877,0.00021917,2]
[363126219,1748592640672,-420.0,0.00021917,2]
[363126220,1748592640681,-420.0,0.00021917,2]
[363126221,1748592640694,-420.0,0.00021917,2]
[363126222,1748592640705,-420.0,0.00021917,2]
[363126223,1748592640714,-1259.69,0.00021917,2]
[363126224,1748592640723,-420.0,0.00021917,2]
[363126225,1748592640734,-160.0,0.00021917,2]
[363126226,1748592640743,-420.0,0.00021917,2]
[363126227,1748592640753,-420.0,0.00021917,2]
[363126228,1748592640763,-160.0,0.00021917,2]
[363126229,1748592640773,-857.74,0.00021917,2]
[363126230,1748592640784,-434.12,0.00021917,2]
[363126231,1748592640793,-420.0,0.00021917,2]
[363126232,1748592640802,-490.4,0.00021917,2]
[363126233,1748592640811,-160.0,0.00021917,2]
[363126234,1748592640821,-420.0,0.00021917,2]
[363126235,1748592640832,-420.0,0.00021917,2]
[363126236,1748592640842,-162.57829259,0.00021917,2]
[363126237,1748592640852,-810.32,0.00021917,2]
[363126238,1748592640862,-420.0,0.00021917,2]
[363126239,1748592640872,-618.21,0.00021917,2]
[363126240,1748592640882,-160.0,0.00021917,2]
[363126241,1748592640892,-1361.42,0.00021917,2]
[363126242,1748592640902,-160.0,0.00021917,2]
[363126243,1748592640912,-420.0,0.00021917,2]
[363126244,1748592640922,-521.22,0.00021917,2]
[363126245,1748592640932,-420.04,0.00021917,2]
[363126246,1748592640942,-528.02,0.00021917,2]
[363126247,1748592640952,-431.42,0.00021917,2]
[363126248,1748592640961,-420.0,0.00021917,2]
[363126249,1748592640971,-420.0,0.00021917,2]
[363126250,1748592640981,-420.0,0.00021917,2]
[363126251,1748592640991,-420.0,0.00021917,2]
[363126252,1748592641000,-420.0,0.00021917,2]
[363126253,1748592641010,-420.0,0.00021917,2]
[363126254,1748592641019,-420.0,0.00021917,2]
[363126255,1748592641029,-567.13,0.00021917,2]
[363126256,1748592641038,-1000.38,0.00021917,2]
[363126257,1748592641048,-420.0,0.00021917,2]
[363126258,1748592641057,-420.0,0.00021917,2]
[363126259,1748592641066,-1114.19,0.00021917,2]
[363126260,1748592641075,-420.0,0.00021917,2]
[363126261,1748592641084,-420.0,0.00021917,2]
[363126262,1748592641092,-420.0,0.00021917,2]
[363126263,1748592641102,-420.0,0.00021917,2]
[363126264,1748592641111,-420.0,0.00021917,2]
[363126265,1748592641121,-578.95,0.00021917,2]
[363126266,1748592641131,-420.0,0.00021917,2]
[363126267,1748592641141,-420.0,0.00021917,2]
[363126268,1748592641150,-420.0,0.00021917,2]
[363126269,1748592641159,-420.0,0.00021917,2]
[363126270,1748592641169,-562.51,0.00021917,2]
[363126271,1748592641179,-420.0,0.00021917,2]
[363126272,1748592641189,-160.0,0.00021917,2]
[363126273,1748592641199,-420.0,0.00021917,2]
[363126274,1748592641208,-724.38,0.00021917,2]
[363126275,1748592641218,-747.97,0.00021917,2]
[363126276,1748592641227,-420.0,0.00021917,2]
[363126277,1748592641237,-420.0,0.00021917,2]
[363126278,1748592641247,-420.0,0.00021917,2]
[363126279,1748592641257,-691.51,0.00021917,2]
[363126280,1748592641267,-160.0,0.00021917,2]
[363126281,1748592641277,-420.0,0.00021917,2]
[363126282,1748592641287,-163.37657939,0.00021917,2]
[363126283,1748592641482,-170.3644901,0.00021917,2]
[363126284,1748592641522,-1063.26,0.00021917,2]
[363126285,1748592641532,-420.0,0.00021917,2]
[363126286,1748592641542,-1493.5,0.00021917,2]
[363126287,1748592641551,-433.76,0.00021917,2]
[363126288,1748592641561,-420.0,0.00021917,2]
[363126289,1748592641571,-464.16,0.00021917,2]
[363126290,1748592641582,-561.34,0.00021917,2]
[363126291,1748592641592,-420.0,0.00021917,2]
[363126292,1748592641602,-528.13,0.00021917,2]
[363126293,1748592641611,-420.0,0.00021917,2]
[363126294,1748592641621,-1308.58,0.00021917,2]
[363126295,1748592641630,-430.2,0.00021917,2]
[363126296,1748592641640,-160.0,0.00021917,2]
[363126297,1748592641651,-950.67,0.00021917,2]
[363126298,1748592641661,-420.0,0.00021917,2]
[363126299,1748592641671,-420.0,0.00021917,2]
[363126300,1748592641681,-393.20956039,0.00021917,2]
[363126301,1748592641690,-1034.97,0.00021917,2]
[363126302,1748592641703,-165.58666501,0.00021917,2]
[363126303,1748592641713,-500.0,0.00021917,2]
[363126304,1748592641722,-420.0,0.00021917,2]
[363126305,1748592641732,-465.71,0.00021917,2]
[363126306,1748592641742,-1254.1,0.00021917,2]
[363126307,1748592641752,-420.0,0.00021917,2]
[363126308,1748592641762,-597.48,0.00021917,2]
[363126309,1748592641773,-420.0,0.00021917,2]
[363126310,1748592641783,-423.50120856,0.00021917,2]
[363126311,1748592641792,-160.0,0.00021917,2]
[363126312,1748592641802,-420.0,0.00021917,2]
[363126313,1748592641812,-156.5,0.00021917,2]
[363126314,1748592641822,-1011.82,0.00021917,2]
[363126315,1748592641833,-420.0,0.00021917,2]
[363126316,1748592641843,-160.0,0.00021917,2]
[363126317,1748592641852,-156.041516,0.00021917,2]
[363126318,1748592641862,-420.0,0.00021917,2]
[363126319,1748592641872,-420.0,0.00021917,2]
[363126320,1748592641881,-446.66,0.00021917,2]
[363126321,1748592641891,-158.717623,0.00021917,2]
[363126322,1748592641901,-420.0,0.00021917,2]
[363126323,1748592641910,-160.0,0.00021917,2]
[363126324,1748592641921,-420.0,0.00021917,2]
[363126325,1748592641931,-1184.0,0.00021917,2]
[363126326,1748592641941,-420.0,0.00021917,2]
[363126327,1748592641951,-185.44131668,0.00021917,2]
[363126328,1748592641961,-436.81,0.00021917,2]
[363126329,1748592641971,-420.0,0.00021917,2]
[363126330,1748592641980,-569.66,0.00021917,2]
[363126331,1748592641990,-5307.91,0.00021917,2]
[363126332,1748592642000,-420.0,0.00021917,2]
[363126333,1748592642009,-420.0,0.00021917,2]
[363126334,1748592642019,-420.0,0.00021917,2]
[363126335,1748592642029,-420.0,0.00021917,2]
[363126336,1748592642039,-420.0,0.00021917,2]
[363126337,1748592642048,-617.98,0.00021917,2]
[363126338,1748592642058,-420.0,0.00021917,2]
[363126339,1748592642067,-166.44,0.00021917,2]
[363126340,1748592642078,-1268.34,0.00021917,2]
[363126341,1748592642087,-420.0,0.00021917,2]
[363126342,1748592642097,-420.0,0.00021917,2]
[363126343,1748592642107,-657.11,0.00021917,2]
[363126344,1748592642117,-420.0,0.00021917,2]
[363126345,1748592642127,-420.0,0.00021917,2]
[363126346,1748592642137,-363.95979493,0.00021917,2]
[363126347,1748592642147,-420.0,0.00021917,2]
[363126348,1748592642158,-420.0,0.00021917,2]
[363126349,1748592642168,-160.0,0.00021917,2]
[363126350,1748592642177,-808.16,0.00021917,2]
[363126351,1748592642187,-420.0,0.00021917,2]
[363126352,1748592642196,-189.74073035,0.00021917,2]
[363126353,1748592642206,-1702.69,0.00021917,2]
[363126354,1748592642216,-160.0,0.00021917,2]
[363126355,1748592642225,-420.0,0.00021917,2]
[363126356,1748592642235,-1729.64,0.00021917,2]
[363126357,1748592642244,-420.0,0.00021917,2]
[363126358,1748592642254,-460.79504359,0.00021917,2]
[363126359,1748592642264,-420.0,0.00021917,2]
[363126360,1748592642274,-7098.07,0.00021917,2]
[363126361,1748592642284,-458.65,0.00021917,2]
[363126362,1748592642294,-328.9,0.00021917,2]
[363126363,1748592642303,-420.0,0.00021917,2]
[363126364,1748592642313,-420.0,0.00021917,2]
[363126365,1748592642322,-160.0,0.00021917,2]
[363126366,1748592642333,-503.80554401,0.00021917,2]
[363126367,1748592642343,-1074.12,0.00021917,2]
[363126368,1748592642354,-450.48,0.00021917,2]
[363126369,1748592642364,-160.0,0.00021917,2]
[363126370,1748592642375,-412.91932066,0.00021917,2]
[363126371,1748592642384,-4144.94,0.00021917,2]
[363126372,1748592642395,-238.75968,0.00021917,2]
[363126373,1748592642405,-514.82,0.00021917,2]
[363126374,1748592642415,-1190.34,0.00021917,2]
[363126375,1748592642425,-5641.66,0.00021917,2]
[363126376,1748592642435,-559.75,0.00021917,2]
[363126377,1748592642446,-1008.72,0.00021917,2]
[363126378,1748592642456,-449.63,0.00021917,2]
[363126379,1748592642467,-654.96,0.00021917,2]
[363126380,1748592642477,-163.42628217,0.00021917,2]
[363126381,1748592642487,-500.06,0.00021917,2]
[363126382,1748592642497,-420.0,0.00021917,2]
[363126383,1748592642506,-500.0,0.00021917,2]
[363126384,1748592642516,-420.0,0.00021917,2]
[363126385,1748592642526,-1007.85,0.00021917,2]
[363126386,1748592642535,-2518.3,0.00021917,2]
[363126387,1748592642546,-500.0,0.00021917,2]
[363126388,1748592642556,-1489.24,0.00021917,2]
[363126389,1748592642565,-1147.48,0.00021917,2]
[363126390,1748592642575,-431.13,0.00021917,2]
[363126391,1748592642586,-580.44,0.00021917,2]
[363126392,1748592642595,-420.0,0.00021917,2]
[363126393,1748592642605,-9515.57,0.00021917,2]
[363126394,1748592642615,-579.11,0.00021917,2]
[363126395,1748592642624,-2795.64,0.00021917,2]
[363126397,1748592642634,-163.383775,0.00021917,2]
[363126399,1748592642643,-157.524258,0.00021917,2]
[363126400,1748592642652,-420.0,0.00021917,2]
[363126401,1748592642662,-420.0,0.00021917,2]
[363126403,1748592642671,-1001.6,0.00021917,2]
[363126405,1748592642681,-1053.36,0.00021917,2]
[363126407,1748592642695,-1451.34,0.00021917,2]
[363126409,1748592642705,-5056.41,0.00021917,2]
[363126412,1748592642715,-609.91,0.00021917,2]
[363126415,1748592642725,-420.0,0.00021917,2]
[363126416,1748592642735,-1717.74,0.00021917,2]
[363126418,1748592642744,-420.0,0.00021917,2]
[363126419,1748592642753,-420.0,0.00021917,2]
[363126420,1748592642763,-160.0,0.00021917,2]
[363126421,1748592642773,-1288.47,0.00021917,2]
[363126422,1748592642782,-412.0,0.00021917,2]
[363126423,1748592642792,-160.0,0.00021917,2]
[363126424,1748592642802,-420.0,0.00021917,2]
[363126425,1748592642811,-672.94,0.00021917,2]
[363126426,1748592642821,-420.0,0.00021917,2]
[363126427,1748592642831,-596.17,0.00021917,2]
[363126428,1748592642840,-515.5,0.00021917,2]
[363126429,1748592642849,-160.0,0.00021917,2]
[363126430,1748592642859,-420.0,0.00021917,2]
[363126431,1748592642868,-420.0,0.00021917,2]
[363126432,1748592642878,-420.0,0.00021917,2]
[363126433,1748592642887,-523.9289141,0.00021917,2]
[363126434,1748592642897,-420.0,0.00021917,2]
[363126435,1748592642906,-1149.88,0.00021917,2]
[363126436,1748592642915,-420.0,0.00021917,2]
[363126437,1748592642924,-420.0,0.00021917,2]
[363126438,1748592642934,-434.89,0.00021917,2]
[363126439,1748592642943,-420.0,0.00021917,2]
[363126440,1748592642952,-3024.98,0.00021917,2]
[363126441,1748592642962,-985.71,0.00021917,2]
[363126442,1748592642972,-420.0,0.00021917,2]
[363126443,1748592642981,-420.0,0.00021917,2]
[363126444,1748592642991,-420.0,0.00021917,2]
[363126445,1748592643000,-420.0,0.00021917,2]
[363126446,1748592643010,-420.0,0.00021917,2]
[363126447,1748592643019,-160.0,0.00021917,2]
[363126448,1748592643028,-420.0,0.00021917,2]
[363126449,1748592643038,-3061.08,0.00021917,2]
[363126450,1748592643047,-668.36,0.00021917,2]
[363126451,1748592643056,-420.0,0.00021917,2]
[363126452,1748592643066,-196.06,0.00021917,2]
[363126453,1748592643075,-673.2,0.00021917,2]
[363126454,1748592643085,-431.49701578,0.00021917,2]
[363126455,1748592643095,-534.43,0.00021917,2]
[363126456,1748592643105,-571.46,0.00021917,2]
[363126457,1748592643114,-420.0,0.00021917,2]
[363126458,1748592643125,-420.0,0.00021917,2]
[363126459,1748592643134,-3203.3,0.00021917,2]
[363126460,1748592643144,-424.29767535,0.00021917,2]
[363126461,1748592643154,-1429.68,0.00021917,2]
[363126462,1748592643163,-1471.23,0.00021917,2]
[363126463,1748592643173,-428.36294838,0.00021917,2]
[363126464,1748592643183,-721.97,0.00021917,2]
[363126465,1748592643193,-663.98,0.00021917,2]
[363126466,1748592643203,-1474.47,0.00021917,2]
[363126467,1748592643213,-160.0,0.00021917,2]
[363126468,1748592643222,-500.0,0.00021917,2]
[363126469,1748592643232,-420.0,0.00021917,2]
[363126470,1748592643242,-445.98,0.00021917,2]
[363126471,1748592643252,-856.34,0.00021917,2]
[363126472,1748592643262,-807.29,0.00021917,2]
[363126473,1748592643272,-1506.74,0.00021917,2]
[363126474,1748592643282,-2044.57,0.00021917,2]
[363126475,1748592643292,-945.46,0.00021917,2]
[363126476,1748592643302,-160.0,0.00021917,2]
[363126477,1748592643312,-646.72,0.00021917,2]
[363126478,1748592643322,-420.0,0.00021917,2]
[363126479,1748592643333,-420.0,0.00021917,2]
[363126480,1748592643343,-2114.22,0.00021917,2]
[363126481,1748592643353,-9728.0,0.00021917,2]
[363126482,1748592643363,-829.37,0.00021917,2]
[363126483,1748592643373,-500.0,0.00021917,2]
[363126484,1748592643383,-928.52,0.00021917,2]
[363126485,1748592643394,-160.0,0.00021917,2]
[363126486,1748592643404,-420.0,0.00021917,2]
[363126487,1748592643414,-524.39,0.00021917,2]
[363126488,1748592643424,-633.06,0.00021917,2]
[363126489,1748592643433,-420.0,0.00021917,2]
[363126490,1748592643443,-2102.09,0.00021917,2]
[363126491,1748592643453,-1472.48,0.00021917,2]
[363126492,1748592643463,-160.0,0.00021917,2]
[363126493,1748592643474,-153.32218622,0.00021917,2]
[363126494,1748592643484,-420.0,0.00021917,2]
[363126495,1748592643494,-420.0,0.00021917,2]
[363126496,1748592643504,-523.61,0.00021917,2]
[363126497,1748592643514,-1007.28,0.00021917,2]
[363126498,1748592643524,-434.43,0.00021917,2]
[363126499,1748592643534,-11117.28,0.00021917,2]
[363126500,1748592643544,-420.0,0.00021917,2]
[363126501,1748592643554,-482.9318789,0.00021917,2]
[363126502,1748592643564,-1160.63,0.00021917,2]
[363126503,1748592643574,-10583.42,0.00021917,2]
[363126504,1748592643585,-1652.99,0.00021917,2]
[363126505,1748592643595,-912.08,0.00021917,2]
[363126506,1748592643605,-909.0,0.00021917,2]
[363126507,1748592643615,-1687.13,0.00021917,2]
[363126508,1748592643624,-277.13366348,0.00021917,2]
[363126509,1748592643634,-554.36,0.00021917,2]
[363126510,1748592643644,-420.0,0.00021917,2]
[363126511,1748592643654,-420.0,0.00021917,2]
[363126512,1748592643663,-456.18,0.00021917,2]
[363126513,1748592643673,-420.0,0.00021917,2]
[363126514,1748592643683,-403.29972029,0.00021917,2]
[363126515,1748592643695,-695.77,0.00021917,2]
[363126516,1748592643705,-12607.12,0.00021917,2]
[363126517,1748592643715,-1673.85,0.00021917,2]
[363126518,1748592643724,-958.74,0.00021917,2]
[363126519,1748592643734,-420.0,0.00021917,2]
[363126520,1748592643745,-420.0,0.00021917,2]
[363126521,1748592643755,-1280.36,0.00021917,2]
[363126522,1748592643766,-437.18,0.00021917,2]
[363126523,1748592643776,-420.0,0.00021917,2]
[363126524,1748592643786,-662.19,0.00021917,2]
[363126525,1748592643796,-1104.73,0.00021917,2]
[363126526,1748592643806,-420.0,0.00021917,2]
[363126527,1748592643815,-420.0,0.00021917,2]
[363126528,1748592643825,-1669.87,0.00021917,2]
[363126529,1748592643836,-799.5,0.00021917,2]
[363126530,1748592643845,-3877.72,0.00021917,2]
[363126531,1748592643856,-1120.46,0.00021917,2]